{"text_format":"1","workbook":"xlsx","n_sheets":16,"sheets":["Исходные данные","Дзен-мани","ДеньгиОК","Кошелёк","Дребеденьги","Acemoney","CoinKeeper","EasyFinance","Finansisto","Financius","Money (iBear)","Monefy","Money Flow","Money Pro (1)","Money Pro (2)","HomeMoney"],"not_rendered":{"charts":0,"images":0,"macros":1,"external_links":0,"defined_names":2,"comments":0,"pivot_tables":0},"unopened":[],"bounds":{"document_bytes":16777216,"sheet_cells":100000,"rows_first":2000,"rows_last":500,"rows_between":2000,"halvings":0,"cell_chars":16384,"cell_head_chars":4096},"cells_cut":0,"cells_raw":0,"read":"whole","date_system":"1900"}

{"sheet":"Исходные данные","index":0,"n_rows":1,"n_cols":1,"rows_kept":1,"cut":false,"hidden":false,"merged":[[0,0,0,11]]}
["1. Поставьте курсор на ячейку A2. Нажмите в меню Данные/Из текста. Выберите файл csv импортируемых данных и откройте его.\n2. Перейдите на лист с названием нужного приложения, выделите вторую строку данных и растяните её вниз на нужное количество строк.\n3. Сохраните страницу в формате csv.\n4. На сайте zenmoney.ru выберите в Меню / ещё / Импорт загрузку из этого файла.\n5. В настройках импорта укажите пропустить 1 первую строку (если там у вас заголовки) и проставьте типы колонок в соответствии с данными в них.  "]

{"sheet":"Дзен-мани","index":1,"n_rows":4,"n_cols":8,"rows_kept":4,"cut":false,"hidden":false,"merged":[]}
["Дата","Категория","Плательщик","Счет","Сумма-расход","Счет-получатель","Сумма-доход","Комментарий"]
[{"$f":"IF('Исходные данные'!$A2<>\"\",'Исходные данные'!$A2,\"\")","v":""},{"$f":"IF(AND($A2<>\"\",'Исходные данные'!$B2<>\"\"),'Исходные данные'!$B2,\"\")","v":""},{"$f":"IF(AND($A2<>\"\",'Исходные данные'!$C2<>\"\"),'Исходные данные'!$C2,\"\")","v":""},{"$f":"IF(AND($A2<>\"\",'Исходные данные'!$E2<>\"\"),'Исходные данные'!$E2,\"\")","v":""},{"$f":"IF(AND($A2<>\"\",'Исходные данные'!$F2<>\"\"),'Исходные данные'!$F2,\"\")","v":""},{"$f":"IF(AND($A2<>\"\",'Исходные данные'!$H2<>\"\"),'Исходные данные'!$H2,\"\")","v":""},{"$f":"IF(AND($A2<>\"\",'Исходные данные'!$I2<>\"\"),'Исходные данные'!$I2,\"\")","v":""},{"$f":"IF(AND($A2<>\"\",'Исходные данные'!$D2<>\"\"),NlToSpace('Исходные данные'!$D2),\"\")","v":""}]
["Выделите 2ую строчку до столбца H и протяните за уголок вниз"]
["Удалите пустые строки и строки, не относящиеся к операциям, если такие появятся"]

{"sheet":"ДеньгиОК","index":2,"n_rows":4,"n_cols":7,"rows_kept":4,"cut":false,"hidden":false,"merged":[]}
["Дата","Категория","Счёт-отправитель","Сумма-расход","Счёт-получатель","Сумма-доход","Комментарий"]
[{"$f":"IF(AND('Исходные данные'!$A2<>\"\",'Исходные данные'!$E2<>\"Остаток на счете\"),'Исходные данные'!$A2,\"\")","v":""},{"$f":"IF(AND($A2<>\"\",'Исходные данные'!$E2<>\"\"),'Исходные данные'!$E2,\"\")","v":""},{"$f":"IF(AND($A2<>\"\",'Исходные данные'!$D2<>\"\"),'Исходные данные'!$D2,\"\")","v":""},{"$f":"IF($A2<>\"\",-'Исходные данные'!$B2,\"\")","v":""},{"$f":"IF(AND($A2<>\"\",'Исходные данные'!$E2=\"Перевод\"),'Исходные данные'!$F2,\"\")","v":""},{"$f":"IF(AND($A2<>\"\",'Исходные данные'!$E2=\"Перевод\"),$D2,\"\")","v":""},{"$f":"IF(AND($A2<>\"\",'Исходные данные'!$G2<>\"\"),NlToSpace('Исходные данные'!$G2),\"\")","v":""}]
["Выделите 2ую строчку до столбца G и протяните за уголок вниз"]
["Удалите пустые строки и строки, не относящиеся к операциям, если такие появятся"]

{"sheet":"Кошелёк","index":3,"n_rows":4,"n_cols":7,"rows_kept":4,"cut":false,"hidden":true,"merged":[]}
["Дата","Счет","Счет-получатель","Расход","Доход","Категория","Комментарий"]
[{"$f":"DATEVALUE(MID('Исходные данные'!#REF!,1,SEARCH(\" \",'Исходные данные'!#REF!))&MID('Исходные данные'!#REF!,SEARCH(\" \",'Исходные данные'!#REF!)+1,3)&MID('Исходные данные'!#REF!,SEARCH(\" \",'Исходные данные'!#REF!,4),5))","v":{"$error":"#REF!"}},{"$f":"IF('Исходные данные'!#REF!=\"Расход\",'Исходные данные'!#REF!,\"\")","v":{"$error":"#REF!"}},{"$f":"IF('Исходные данные'!#REF!=\"Доход\",'Исходные данные'!#REF!,\"\")","v":{"$error":"#REF!"}},{"$f":"IF('Исходные данные'!#REF!=\"Расход\",IF(MID('Исходные данные'!#REF!, LEN('Исходные данные'!#REF!)-1, 1)=\" \", VALUE(SUBSTITUTE(SUBSTITUTE(MID('Исходные данные'!#REF!, 1, LEN('Исходные данные'!#REF!)-2), \" \", \"\"), \" \", \"\")), 'Исходные данные'!#REF!),\"\")","v":{"$error":"#REF!"}},{"$f":"IF('Исходные данные'!#REF!=\"Доход\",IF(MID('Исходные данные'!#REF!, LEN('Исходные данные'!#REF!)-1, 1)=\" \", VALUE(MID('Исходные данные'!#REF!, 1, LEN('Исходные данные'!#REF!)-2)), 'Исходные данные'!#REF!),\"\")","v":{"$error":"#REF!"}},{"$f":"IF('Исходные данные'!#REF!<>\"\",'Исходные данные'!#REF!,\"\")","v":{"$error":"#REF!"}},{"$f":"IF('Исходные данные'!#REF!<>\"\",'Исходные данные'!#REF!,\"\")","v":{"$error":"#REF!"}}]
["Выделите 2ую строчку до столбца G и протяните за уголок вниз"]
["Удалите пустые строки и строки, не относящиеся к операциям, если такие появятся"]

{"sheet":"Дребеденьги","index":4,"n_rows":4,"n_cols":7,"rows_kept":4,"cut":false,"hidden":false,"merged":[]}
["Дата","Категория","Счёт-отправитель","Сумма-расход","Счёт-получатель","Сумма-доход","Комментарий"]
[{"$f":"IF(OR('Исходные данные'!$A2<>\"Перемещение\",'Исходные данные'!$D2<0),GetDate('Исходные данные'!$F2), \"\")","v":{"$error":"#VALUE!"}},{"$f":"IF(AND($A2<>\"\", 'Исходные данные'!$C2<>\"\"),'Исходные данные'!$C2, \"\")","v":{"$error":"#VALUE!"}},{"$f":"IF('Исходные данные'!$A2=\"Расход\", 'Исходные данные'!$B2, IF(AND('Исходные данные'!$A2=\"Перемещение\", $A2<>\"\"),  'Исходные данные'!$B2, \"\"))","v":{"$error":"#VALUE!"}},{"$f":"IF('Исходные данные'!$A2=\"Расход\", -'Исходные данные'!D2, IF(AND('Исходные данные'!$A2=\"Перемещение\", $A2<>\"\"),  -'Исходные данные'!$D2, \"\"))","v":{"$error":"#VALUE!"}},{"$f":"IF('Исходные данные'!$A2=\"Доход\", 'Исходные данные'!$B2, IF(AND('Исходные данные'!$A2=\"Перемещение\", $A2<>\"\"), 'Исходные данные'!$B3, \"\"))","v":{"$error":"#VALUE!"}},{"$f":"IF('Исходные данные'!$A2=\"Доход\", 'Исходные данные'!$D2, IF(AND('Исходные данные'!$A2=\"Перемещение\", $A2<>\"\"), 'Исходные данные'!$D3, \"\"))","v":{"$error":"#VALUE!"}},{"$f":"IF(AND($A2<>\"\", 'Исходные данные'!$G2<>\"\"),NlToSpace('Исходные данные'!$G2), \"\")","v":{"$error":"#VALUE!"}}]
["Выделите 2ую строчку до столбца G и протяните за уголок вниз"]
["После этого вручную удалите все пустые строки"]

{"sheet":"Acemoney","index":5,"n_rows":15,"n_cols":8,"rows_kept":15,"cut":false,"hidden":false,"merged":[]}
["Дата","Категория","Плательщик","Счет","Сумма-расход","Счет-получатель","Сумма-доход","Комментарий"]
[{"$f":"IF('Исходные данные'!B2,'Исходные данные'!B2,\"\")","v":""},{"$f":"IF('Исходные данные'!D2<>\"\",'Исходные данные'!D2,\"\")","v":""},{"$f":"IF('Исходные данные'!C2<>\"\",'Исходные данные'!C2,\"\")","v":""},{"$f":"'Исходные данные'!J2","v":0},{"$f":"IF('Исходные данные'!F2<>\"\",'Исходные данные'!F2,\"\")","v":""},{"$f":"IF(LEFT('Исходные данные'!C2,9)=\"перевод с\",\"строку удалить\",IF(LEFT('Исходные данные'!C2,10)=\"перевод на\",RIGHT('Исходные данные'!C2,LEN('Исходные данные'!C2)-11),\"\"))","v":""},{"$f":"IF(IF(LEFT('Исходные данные'!C2,10)=\"перевод на\",E2,'Исходные данные'!G2)<>0,IF(LEFT('Исходные данные'!C2,10)=\"перевод на\",E2,'Исходные данные'!G2),\"\")","v":""},{"$f":"IF('Исходные данные'!I2<>\"\",NlToSpace('Исходные данные'!I2),\"\")","v":""}]
["Исходные данные"]
["1. Выполните экпорт каждого счета из Acemoney в csv."]
["2. Скопируйте текст из каждого файла на лист \"Исходные данные\", указав в столбце J наименование счёта операции"]
["На листе \"Аcemoney\""]
["3. Выделите вторую строку данных и растяните её вниз на нужное количество строк."]
["4. В столбце Плательщик удалите текст = \"Перевод на ___\" "]
["5. Удалите строки  по фильтру \"Счет-получатель = строку удалить\" - это удаление зеркальных переводов (перевод с ___)"]
["6. Проверьте и удалите(скорректируйте) пустые записи, где расход+доход=0"]
["7. Сохраните страницу в формате csv."]
["Веб-сайт zenmoney.ru"]
["8. Внесите названия всех счетов через веб версию."]
["9. Выберите в Меню / ещё / Импорт загрузку из этого файла."]
["10. В настройках импорта укажите пропустить 1 первую строку (если там у вас заголовки) и проставьте типы колонок в соответствии с данными в них."]

{"sheet":"CoinKeeper","index":6,"n_rows":3,"n_cols":7,"rows_kept":3,"cut":false,"hidden":false,"merged":[]}
["Дата","Счет","Счет-получатель","Расход","Доход","Категория","Комментарий"]
[{"$f":"'Исходные данные'!$A2","v":"00:00:00"},{"$f":"IF('Исходные данные'!$B2=\"Доход\",'Исходные данные'!$D2,'Исходные данные'!$C2)","v":0},{"$f":"IF('Исходные данные'!$B2=\"Расход\",'Исходные данные'!$C2,'Исходные данные'!$D2)","v":0},{"$f":"IF(OR('Исходные данные'!$B2=\"Доход\",'Исходные данные'!$B2=\"Перевод\"),0,'Исходные данные'!$E2)","v":0},{"$f":"IF('Исходные данные'!$B2=\"Расход\",0,'Исходные данные'!$G2)","v":0},{"$f":"IF('Исходные данные'!$B2=\"Расход\",'Исходные данные'!$D2,IF('Исходные данные'!$B2=\"Доход\",'Исходные данные'!$C2,\"\"))","v":""},{"$f":"IF('Исходные данные'!$J2<>\"\",NlToSpace('Исходные данные'!$J2),\"\")","v":""}]
["Выделите 2ую строчку до столбца G и протяните за уголок вниз"]

{"sheet":"EasyFinance","index":7,"n_rows":3,"n_cols":8,"rows_kept":3,"cut":false,"hidden":false,"merged":[]}
["Дата","Категория","Плательщик","Счет","Сумма-расход","Счет-получатель","Сумма-доход","Комментарий"]
[{"$f":"'Исходные данные'!$A2","v":"00:00:00"},{"$f":"IF('Исходные данные'!$N2<>\"\", 'Исходные данные'!$N2, \"\")","v":""},{"$f":"IF('Исходные данные'!$M2<>\"\",'Исходные данные'!$M2,\"\")","v":""},{"$f":"TRIM(IF('Исходные данные'!D2<>\"доход\",'Исходные данные'!$B2,\"\"))","v":""},{"$f":"IF(OR('Исходные данные'!$D2=\"расход\", 'Исходные данные'!$D2=\"перевод со счёта\"), 'Исходные данные'!$G2, \"\")","v":""},{"$f":"TRIM(IF('Исходные данные'!D2<>\"расход\",IF('Исходные данные'!$D2=\"доход\",'Исходные данные'!$B2,'Исходные данные'!$C2),\"\"))","v":""},{"$f":"IF('Исходные данные'!$D2=\"перевод со счёта\", IF('Исходные данные'!$J2>0, 'Исходные данные'!$J2, 'Исходные данные'!$G2), IF('Исходные данные'!$D2=\"доход\", 'Исходные данные'!$G2, \"\"))","v":""},{"$f":"IF('Исходные данные'!$L2<>\"\", NlToSpace('Исходные данные'!$L2), \"\")","v":""}]
["Выделите 2ую строчку до столбца H и протяните за уголок вниз"]

{"sheet":"Finansisto","index":8,"n_rows":4,"n_cols":8,"rows_kept":4,"cut":false,"hidden":false,"merged":[]}
["Дата","Категория","Получатель","Счёт-отправитель","Сумма-расход","Счёт-получатель","Сумма-доход","Комментарий"]
[{"$f":"IF('Исходные данные'!$J2<>\"Transfer In\", 'Исходные данные'!$A2, \"\")","v":"00:00:00"},{"$f":"IF('Исходные данные'!$J2<>\"Transfer In\", IF('Исходные данные'!$G2<>\"\",'Исходные данные'!$G2,\"\"), \"\")","v":""},{"$f":"IF('Исходные данные'!$J2<>\"Transfer In\", IF('Исходные данные'!$I2<>\"\",'Исходные данные'!$I2,\"\"), \"\")","v":""},{"$f":"IF('Исходные данные'!$J2<>\"Transfer In\", IF('Исходные данные'!$B2<>\"\",IF(VALUE(SUBSTITUTE('Исходные данные'!$C2,\".\",\",\"))<0, 'Исходные данные'!$B2, \"\"),\"\"), \"\")","v":""},{"$f":"IF('Исходные данные'!$J2<>\"Transfer In\", IF(VALUE(SUBSTITUTE('Исходные данные'!$C2,\".\",\",\"))<0, ABS(VALUE(SUBSTITUTE('Исходные данные'!$C2,\".\",\",\"))), \"\"), \"\")","v":{"$error":"#VALUE!"}},{"$f":"IF('Исходные данные'!$J2<>\"Transfer In\", IF('Исходные данные'!$J2=\"Transfer Out\", 'Исходные данные'!#REF!, IF(VALUE(SUBSTITUTE('Исходные данные'!$C2,\".\",\",\"))>0, 'Исходные данные'!$B2, \"\")), \"\")","v":{"$error":"#VALUE!"}},{"$f":"IF('Исходные данные'!$J2<>\"Transfer In\", IF('Исходные данные'!$J2=\"Transfer Out\", VALUE(SUBSTITUTE('Исходные данные'!#REF!,\".\",\",\")), IF(VALUE(SUBSTITUTE('Исходные данные'!$C2,\".\",\",\"))>0, VALUE(SUBSTITUTE('Исходные данные'!$C2,\".\",\",\")), \"\")), \"\")","v":{"$error":"#VALUE!"}},{"$f":"IF('Исходные данные'!$J2<>\"Transfer In\", IF('Исходные данные'!L2<>\"\",NlToSpace('Исходные данные'!L2),\"\"), \"\")","v":""}]
["Выделите 2ую строчку до столбца H и протяните за уголок вниз"]
["После этого вручную удалите все пустые строки"]

{"sheet":"Financius","index":9,"n_rows":3,"n_cols":8,"rows_kept":3,"cut":false,"hidden":false,"merged":[]}
["Дата","Категория","Плательщик","Счет","Сумма-расход","Счет-получатель","Сумма-доход","Комментарий"]
[{"$f":"DATEVALUE(MID('Исходные данные'!$A2,1,SEARCH(\" \",'Исходные данные'!$A2))&MID('Исходные данные'!$A2,SEARCH(\" \",'Исходные данные'!$A2)+1,3)&MID('Исходные данные'!$A2,SEARCH(\" \",'Исходные данные'!$A2,4),5))","v":{"$error":"#VALUE!"}},{"$f":"IF('Исходные данные'!$H2<>\"\", 'Исходные данные'!$H2, \"\")","v":""},{"$f":"IF('Исходные данные'!$I2<>\"\", 'Исходные данные'!$I2, \"\")","v":""},{"$f":"IF('Исходные данные'!$F2<>\"\", 'Исходные данные'!$F2, \"\")","v":""},{"$f":"IF(OR('Исходные данные'!$C2=\"Expense\", 'Исходные данные'!$C2=\"Transfer\"), 'Исходные данные'!$J2, \"\")","v":""},{"$f":"IF('Исходные данные'!$G2<>\"\", 'Исходные данные'!$G2, \"\")","v":""},{"$f":"IF(OR('Исходные данные'!$C2=\"Income\", 'Исходные данные'!$C2=\"Transfer\"), 'Исходные данные'!$J2, \"\")","v":""},{"$f":"IF('Исходные данные'!$E2<>\"\", NlToSpace('Исходные данные'!$E2), \"\")","v":""}]
["Выделите 2ую строчку до столбца H и протяните за уголок вниз"]

{"sheet":"Money (iBear)","index":10,"n_rows":4,"n_cols":8,"rows_kept":4,"cut":false,"hidden":false,"merged":[]}
["Дата","Категория","Плательщик","Счет","Сумма-расход","Счет-получатель","Сумма-доход","Комментарий"]
[{"$f":"IF('Исходные данные'!$A2<>\"\",'Исходные данные'!$A2,\"\")","v":""},{"$f":"IF('Исходные данные'!$E2<>\"\", 'Исходные данные'!$E2, \"\")","v":""},{"$f":"IF('Исходные данные'!$H2<>\"\",'Исходные данные'!$H2,\"\")","v":""},{"$f":"IF('Исходные данные'!$G2=\"Перевод средств\",MID('Исходные данные'!$C2,1,FIND(\" > \", 'Исходные данные'!$C2)),'Исходные данные'!$C2)","v":0},{"$f":"VALUE(MID('Исходные данные'!$B2, 1, LEN('Исходные данные'!$B2)-4))","v":{"$error":"#VALUE!"}},{"$f":"IF('Исходные данные'!$G2=\"Перевод средств\",MID('Исходные данные'!$C2,FIND(\" > \", 'Исходные данные'!$C2)+3, 1000),\"\")","v":""},{"$f":"IF('Исходные данные'!$G2=\"Перевод средств\",E2,\"\")","v":""},{"$f":"NlToSpace(IF('Исходные данные'!$G2=\"Корректировка баланса\", 'Исходные данные'!$G2, 'Исходные данные'!$F2))","v":""}]
["Выделите 2ую строчку до столбца H и протяните за уголок вниз"]
["Удалите пустые строки и строки, не относящиеся к операциям, если такие появятся"]

{"sheet":"Monefy","index":11,"n_rows":4,"n_cols":5,"rows_kept":4,"cut":false,"hidden":false,"merged":[]}
["Дата","Счет","Категория","Сумма со знаком","Комментарий"]
[{"$f":"'Исходные данные'!$A2","v":"00:00:00"},{"$f":"'Исходные данные'!$B2","v":0},{"$f":"IF(OR(LEFT('Исходные данные'!C2,4)=\"To '\",LEFT('Исходные данные'!C2,6)=\"From '\"),\"\",'Исходные данные'!C2)","v":0},{"$f":"'Исходные данные'!$D2","v":0},{"$f":"IF('Исходные данные'!$H2<>\"\", NlToSpace('Исходные данные'!$H2), \"\")","v":""}]
["Выделите 2ую строчку до столбца E и протяните за уголок вниз"]
["Удалите пустые строки и строки, не относящиеся к операциям, если такие появятся"]

{"sheet":"Money Flow","index":12,"n_rows":4,"n_cols":7,"rows_kept":4,"cut":false,"hidden":false,"merged":[]}
["Дата","Счет","Счет-получатель","Расход","Доход","Категория","Комментарий"]
[{"$f":"GetDate('Исходные данные'!$A2)","v":{"$error":"#VALUE!"}},{"$f":"IF('Исходные данные'!$B2<0,'Исходные данные'!$D2,\"\")","v":""},{"$f":"IF('Исходные данные'!$B2>0,'Исходные данные'!$D2,\"\")","v":""},{"$f":"IF('Исходные данные'!$B2<0,-'Исходные данные'!$B2,\"\")","v":""},{"$f":"IF('Исходные данные'!$B2>0,'Исходные данные'!$B2,\"\")","v":""},{"$f":"IF('Исходные данные'!E2<>\"\",'Исходные данные'!E2,\"\")","v":""},{"$f":"IF('Исходные данные'!$F2<>\"\",'Исходные данные'!$F2,IF(AND('Исходные данные'!$D2<>\"\",'Исходные данные'!$E2<>\"\"),\"Перевод между счетами\",\"\"))","v":""}]
["Выделите 2ую строчку до столбца G и протяните за уголок вниз"]
["После этого вручную удалите все пустые строки"]

{"sheet":"Money Pro (1)","index":13,"n_rows":4,"n_cols":7,"rows_kept":4,"cut":false,"hidden":false,"merged":[]}
["Дата","Счет","Счет-получатель","Расход","Доход","Категория","Комментарий"]
[{"$f":"GetDate('Исходные данные'!$A2)","v":{"$error":"#VALUE!"}},{"$f":"IF('Исходные данные'!$G2=\"Расход\",'Исходные данные'!$C2,\"\")","v":""},{"$f":"IF('Исходные данные'!$G2=\"Доход\",'Исходные данные'!$C2,\"\")","v":""},{"$f":"IF('Исходные данные'!$G2=\"Расход\",ABS(GetSum('Исходные данные'!$D2)),\"\")","v":""},{"$f":"IF('Исходные данные'!$G2=\"Доход\",ABS(GetSum('Исходные данные'!$D2)),\"\")","v":""},{"$f":"IF('Исходные данные'!E2<>\"\",'Исходные данные'!E2,\"\")","v":""},{"$f":"IF('Исходные данные'!F2<>\"\",NlToSpace('Исходные данные'!F2),\"\")","v":""}]
["Выделите 2ую строчку до столбца G и протяните за уголок вниз"]
["Удалите пустые строки и строки, не относящиеся к операциям, если такие появятся"]

{"sheet":"Money Pro (2)","index":14,"n_rows":4,"n_cols":8,"rows_kept":4,"cut":false,"hidden":false,"merged":[]}
["Дата","Получатель","Счет","Счет-получатель","Расход","Доход","Категория","Комментарий"]
[{"$f":"GetDate('Исходные данные'!$A2)","v":{"$error":"#VALUE!"}},{"$f":"IF('Исходные данные'!$J2<>\"\",'Исходные данные'!$J2,\"\")","v":""},{"$f":"IF('Исходные данные'!$I2=\"Расход\",'Исходные данные'!$C2,\"\")","v":""},{"$f":"IF('Исходные данные'!$I2<>\"Расход\",'Исходные данные'!$C2,\"\")","v":0},{"$f":"IF('Исходные данные'!$I2=\"Расход\",ABS(GetSum('Исходные данные'!$B2)),\"\")","v":""},{"$f":"IF('Исходные данные'!$I2<>\"Расход\",ABS(GetSum('Исходные данные'!$B2)),\"\")","v":{"$error":"#VALUE!"}},{"$f":"IF('Исходные данные'!$G2<>\"\",'Исходные данные'!$G2,\"\")","v":""},{"$f":"IF('Исходные данные'!$H2<>\"\",NlToSpace('Исходные данные'!$H2),\"\")","v":""}]
["Выделите 2ую строчку до столбца H и протяните за уголок вниз"]
["Удалите пустые строки и строки, не относящиеся к операциям, если такие появятся"]

{"sheet":"HomeMoney","index":15,"n_rows":4,"n_cols":6,"rows_kept":4,"cut":false,"hidden":false,"merged":[]}
["Дата","Счет","Счет-получатель","Категория","Сумма со знаком","Комментарий"]
[{"$f":"IF(AND('Исходные данные'!$A2<>\"\", OR('Исходные данные'!$B2<>'Исходные данные'!$G1, 'Исходные данные'!$G2<>'Исходные данные'!$B1, 'Исходные данные'!$D1=\"\",'Исходные данные'!$D2<>-VALUE('Исходные данные'!$D1))),'Исходные данные'!$A2,\"\")","v":""},{"$f":"IF(AND($A2<>\"\",'Исходные данные'!$B2<>\"\"),'Исходные данные'!$B2,\"\")","v":""},{"$f":"IF(AND($A2<>\"\",'Исходные данные'!$G2<>\"\"),'Исходные данные'!$G2,\"\")","v":""},{"$f":"IF(AND($A2<>\"\",'Исходные данные'!$C2<>\"\"),'Исходные данные'!$C2,\"\")","v":""},{"$f":"IF(AND($A2<>\"\",'Исходные данные'!$D2<>\"\"),'Исходные данные'!$D2,\"\")","v":""},{"$f":"IF(AND($A2<>\"\",'Исходные данные'!$F2<>\"\"),NlToSpace('Исходные данные'!$F2),\"\")","v":""}]
["Выделите 2ую строчку до столбца F и протяните за уголок вниз"]
["Удалите пустые строки и строки, не относящиеся к операциям, если такие появятся"]